Cogmind - Beta 14 @@@ ROGUE MODE // 2025.03.29 @ 13:22:47 Player: Mercey Result: Destroyed by D-53 Grenadier with Mini Grenade Launcher Performance ------------- Evolutions (1) 500 Regions Visited (4) 800 Robots Destroyed (31) 155 Value Destroyed (699) 699 Prototype IDs (2) 40 Alien Tech Used (0) 0 Bonus (41) 41 TOTAL SCORE: 2235 Bonus ------- Follower Combat Kills 67 Friendly Fire -26 Cogmind --------- Core Integrity 0/400 Matter 282/300 Energy 99/100 System Corruption 0% Temperature Cool (0) Movement Core (50) Location -9/Mines Parts ------- > --- POWER (1) -------- (None) > --- PROPULSION (2) --- (None) > --- UTILITY (4) ------ (None) > --- WEAPON (2) ------- (None) > --- INVENTORY (5) ---- Improved Ion Engine Light Nuclear Core Improved Treads Spread Laser Heavy Assault Rifle Peak State ------------ > --- POWER ------------ Improved Ion Engine > --- PROPULSION ------- Light Treads Improved Treads > --- UTILITY ---------- Heat Sink Improved Heat Sink Huge Storage Unit Medium Armor Plating > --- WEAPON ----------- Spread Laser Beam Cannon > --- INVENTORY -------- Improved Ion Engine Light Nuclear Core Light Nuclear Core Light Treads Light Treads Light Treads Improved Treads Improved Treads Small Storage Unit Experimental Sensor Array Beam Rifle Spread Laser Spread Laser Grenade Launcher Rocket Launcher [Rating: 18] Favorites ----------- Power Ion Engine Engine Ion Engine Power Core Light Nuclear Core Propulsion Improved Treads Treads Improved Treads Utility Light Armor Plating Device Improved Heat Sink Storage Small Storage Unit Protection Light Armor Plating Weapon Beam Cannon Energy Gun Spread Laser Energy Cannon Beam Cannon Ballistic Gun Light Assault Rifle Launcher Rocket Launcher Build | -11 -10 -10 -9 -9 ------- Run | Yrd Mat Min Mat Min Slots Evolved 2 | . . . 2 . Power . | . . . . . Propulsion . | . . . . . Utility 2 | . . . 2 . Weapon . | . . . . . Parts Attached 23 | 6 5 3 7 2 Power 7 | 1 . 3 2 1 Engine 4 | 1 . 1 1 1 Core 3 | . . 2 1 . Reactor . | . . . . . Propulsion 5 | 2 2 . 1 . Treads 5 | 2 2 . 1 . Leg . | . . . . . Wheel . | . . . . . Hover . | . . . . . Flight . | . . . . . Utility 6 | 1 1 . 4 . Device 2 | . . . 2 . Storage 2 | 1 . . 1 . Processor . | . . . . . Hackware . | . . . . . Protection 2 | . 1 . 1 . Artifact . | . . . . . Weapon 5 | 2 2 . . 1 Energy Gun 2 | 1 1 . . . Energy Cannon 1 | . 1 . . . Ballistic Gun 1 | 1 . . . . Ballistic Cannon . | . . . . . Launcher 1 | . . . . 1 Special Weapon . | . . . . . Impact Weapon . | . . . . . Slashing Weapon . | . . . . . Piercing Weapon . | . . . . . Special Melee Weapon . | . . . . . Unidentified Prototypes . | . . . . . Parts Lost 9 | . . . 2 7 Power 2 | . . . 1 1 Propulsion 2 | . . . . 2 Utility 3 | . . . 1 2 Weapon 2 | . . . . 2 Highest Loss Streak 7 | . . . 1 7 To Critical Strikes . | . . . . . Average Slot Usage (%) 93 | . 98 100 84 90 Engine 8 | . 14 12 3 11 Core 3 | . . 1 7 . Treads 25 | . 28 28 21 20 Device 5 | . . . 11 20 Storage 12 | . 14 14 11 11 Protection 10 | . 12 14 6 7 Energy Gun 11 | . 8 14 11 7 Energy Cannon 12 | . 12 14 11 9 Peak Build Rating 18 | 6 11 14 18 18 Average Rating 12 | 4 9 11 15 15 On Entrance 9 | . 6 11 14 18 Naked Turns 8 | . . . . 8 Heaviest Build 102 | 11 17 19 102 102 Greatest Support 46 | 40 46 46 46 43 Greatest Overweight (x) 4 | . . . 4 3 Average Overweight (x) . | . . . 1 . Largest Inventory Capacity 25 | 8 8 8 25 25 Average Capacity 15 | 7 8 8 24 22 Most Carried 18 | 4 8 8 17 18 Average Carried 9 | 2 6 7 11 16 Final Capacity 25 | 8 8 8 25 5 Final Carried 17 | 4 8 8 17 5 Class Distribution -------------------- 89% | Mutant 10% | Scavenger-Mutant Dominant Class ---------------- Mutant | -10/Materials Mutant | -10/Mines Mutant | -9/Materials Scavenger-Mutant | -9/Mines Resources | -11 -10 -10 -9 -9 ----------- Run | Yrd Mat Min Mat Min Matter Collected 465 | 257 61 25 122 . Remotely . | . . . . . Salvage Created 891 | . 113 274 466 38 Parts 56 | . 11 13 28 4 Haulers Intercepted . | . . . . . Recyclers Shooed 1 | . . . 1 . Parts Field Recycled . | . . . . . Retrieved Matter . | . . . . . Parts Self-Destructed . | . . . . . Prevented . | . . . . . Kills | -11 -10 -10 -9 -9 ------- Run | Yrd Mat Min Mat Min Combat Hostiles Destroyed 23 | . 4 6 8 5 Guns 9 | . . 4 4 1 Cannons 13 | . 4 2 4 3 AOE 1 | . . . . 1 Classes Destroyed 10 | . 4 3 2 1 Worker 3 | . . 1 2 . Builder 2 | . 1 . 1 . Tunneler 1 | . . 1 . . Recycler 2 | . . 1 1 . Operator 1 | . 1 . . . Watcher 1 | . . . 1 . Swarmer 8 | . 3 2 . 3 Grunt 9 | . 1 4 4 . Sentry 4 | . . . 4 . Assembled 2 | . . . . 2 Best Kill Streak 3 | . 2 3 3 3 Combat Bots Only 3 | . 2 2 3 3 Max Kills in Single Turn 2 | . 1 2 1 2 Gunslinging . | . . . . . Exploded 1 | . . . . 1 Melee . | . . . . . Uniques/NPCs Destroyed . | . . . . . Combat | -11 -10 -10 -9 -9 -------- Run | Yrd Mat Min Mat Min Hostile Shots Fired 127 | . 12 24 43 48 Missed 32 | . 4 7 9 12 Damage Taken 1578 | . 65 177 444 892 Core 461 | . 9 37 60 355 Absorbed by Shields . | . . . . . Core Remaining (%) 90 | 100 . 81 . . Volleys Fired 72 | . 13 14 36 9 Largest 2 | . 2 2 2 2 Hottest 125 | . 125 125 125 125 Shots Fired 142 | . 26 28 70 18 Gun 67 | . 13 14 34 6 Cannon 72 | . 13 14 36 9 Launcher 3 | . . . . 3 Special . | . . . . . Kinetic 11 | . 11 . . . Thermal 128 | . 15 28 70 15 Explosive 3 | . . . . 3 Electromagnetic . | . . . . . Robot Hit Streak 10 | . 6 8 10 4 Robot Miss Streak 8 | . 3 4 8 7 Penetration Max . | . . . . . Secondary Targets . | . . . . . Shots Hit Robots 91 | . 16 15 48 12 Core Hits 103 | . 12 26 47 18 Critical Kills . | . . . . . Critical Parts Destroyed . | . . . . . Critical Strikes . | . . . . . Melee Attacks . | . . . . . Impact . | . . . . . Slashing . | . . . . . Piercing . | . . . . . Sneak Attacks . | . . . . . Combat Hostiles . | . . . . . Follow-up Attacks . | . . . . . Damage Inflicted 1633 | 5 230 308 784 306 Guns 749 | . 74 177 452 46 Cannons 698 | . 156 106 332 104 Explosions 156 | . . . . 156 Melee . | . . . . . Ramming 30 | 5 . 25 . . Kinetic 43 | . 43 . . . Thermal 1404 | . 187 283 784 150 Explosive 156 | . . . . 156 Electromagnetic . | . . . . . Impact . | . . . . . Slashing . | . . . . . Piercing . | . . . . . Highest Corruption . | . . . . . Average Corruption . | . . . . . Corruption Purged . | . . . . . Corruption Blocked . | . . . . . Overload Shots . | . . . . . Overflow Damage . | . . . . . Projectiles . | . . . . . Explosions . | . . . . . Melee . | . . . . . Knockbacks . | . . . . . Impact . | . . . . . Kinetic . | . . . . . Secondary . | . . . . . Self-Inflicted Damage 23 | . . . . 23 Shots 1 | . . . . 1 Rammed 5 | 1 . 4 . . Targets Rammed 7 | 1 . 6 . . Kicked . | . . . . . Crushed 2 | . . 2 . . Highest Temperature 528 | . 151 247 528 . Average Temperature 101 | . 71 96 124 . Received Heat Transfer 285 | . 9 42 234 . Effects 5 | . . 1 4 . Shutdowns 1 | . . . 1 . Energy Bleed 1 | . . 1 . . Interference 1 | . . . 1 . Matter Decay 1 | . . . 1 . Short Circuit 1 | . . . 1 . Siege Activations . | . . . . . Robots Corrupted . | . . . . . Combat Hostiles . | . . . . . Parts Fried . | . . . . . Impact Corruptions . | . . . . . Robots Melted . | . . . . . Combat Hostiles . | . . . . . Parts Melted 7 | . . 1 5 1 Heat Transferred 2360 | . 378 437 1268 277 Parts Sabotaged . | . . . . . Parts Stolen . | . . . . . Parts Stripped . | . . . . . Power Chain Reactions . | . . . . . Alert | -11 -10 -10 -9 -9 ------- Run | Yrd Mat Min Mat Min Peak Influence 240 | . 240 161 167 114 Initial 93 | . . 93 31 7 Average 93 | . 142 109 71 79 Maximum Alert Level 1 | . 1 . . . Low Security (%) 96 | 100 72 100 100 100 Level 1 3 | . 27 . . . Level 2 . | . . . . . Level 3 . | . . . . . Level 4 . | . . . . . Level 5 . | . . . . . High Security . | . . . . . Max Security . | . . . . . Squads Dispatched 3 | . 1 . 2 . Investigation . | . . . . . Extermination . | . . . . . Reinforcement 3 | . 1 . 2 . Assault . | . . . . . Garrison . | . . . . . Intercept . | . . . . . Searches Triggered . | . . . . . Construction Impeded . | . . . . . Haulers Reinforced . | . . . . . Active Scanning Responses . | . . . . . Cargo Convoy Interrupts . | . . . . . Stealth | -11 -10 -10 -9 -9 --------- Run | Yrd Mat Min Mat Min Distress Signals 2 | . 1 . 1 . Communications Jammed . | . . . . . Distress Signals . | . . . . . Times Spotted 51 | . 10 10 17 14 Peak Tracking Total 9 | . 5 3 3 9 Tactical Retreats 4 | . 2 1 1 . Traps | -11 -10 -10 -9 -9 ------- Run | Yrd Mat Min Mat Min Traps Triggered . | . . . . . Indirectly . | . . . . . Trap Hack Attempts . | . . . . . Triggered . | . . . . . Disarmed . | . . . . . Reprogrammed . | . . . . . Reused . | . . . . . Traps Extracted . | . . . . . Installed . | . . . . . Triggered . | . . . . . Machines | -11 -10 -10 -9 -9 ---------- Run | Yrd Mat Min Mat Min Machines Disabled 3 | . . 1 1 1 Max in Single Turn 1 | . . 1 1 1 Machines Repaired . | . . . . . Machines Dismantled . | . . . . . Machines Sabotaged . | . . . . . Overloaded Fab Kills . | . . . . . Hacking | -11 -10 -10 -9 -9 --------- Run | Yrd Mat Min Mat Min Machines Accessed 2 | . 1 . 1 . Terminals 2 | . 1 . 1 . Fabricators . | . . . . . Repair Stations . | . . . . . Recycling Units . | . . . . . Scanalyzers . | . . . . . Garrison Access . | . . . . . Total Hacks 6 | . 4 . 2 . Successful 2 | . 2 . . . Failed 4 | . 2 . 2 . Catastrophic 2 | . . . 2 . Database Lockouts . | . . . . . Manual . | . . . . . Terminals 6 | . 4 . 2 . Fabricators . | . . . . . Repair Stations . | . . . . . Recycling Units . | . . . . . Scanalyzers . | . . . . . Garrison Access . | . . . . . Terminal Hacks 2 | . 2 . . . Prototype ID Bank 1 | . 1 . . . Hauler Manifests 1 | . 1 . . . Fabricator Hacks . | . . . . . Repair Station Hacks . | . . . . . Recycling Unit Hacks . | . . . . . Scanalyzer . | . . . . . Garrison Access Hacks . | . . . . . Unauthorized Hacks . | . . . . . Terminals . | . . . . . Fabricators . | . . . . . Repair Stations . | . . . . . Recycling Units . | . . . . . Scanalyzers . | . . . . . Garrison Access . | . . . . . Data Cores Recovered . | . . . . . Used . | . . . . . Hacking Detections 2 | . 1 . 1 . Full Trace Events 1 | . . . 1 . Feedback Events . | . . . . . Feedback Blocked . | . . . . . Robot Schematics Acquired . | . . . . . Robots Built . | . . . . . Authchips . | . . . . . Time . | . . . . . Total Robot Build Rating . | . . . . . Part Schematics Acquired . | . . . . . Parts Built . | . . . . . Authchips . | . . . . . Time . | . . . . . Total Part Build Rating . | . . . . . Parts Repaired . | . . . . . Time . | . . . . . Parts Recycled . | . . . . . Recycled Matter . | . . . . . Retrieved Matter . | . . . . . Retrieved Components . | . . . . . Parts Scanalyzed . | . . . . . Part Schematics Acquired . | . . . . . Parts Damaged . | . . . . . Bothacking | -11 -10 -10 -9 -9 ------------ Run | Yrd Mat Min Mat Min Used RIF Installer . | . . . . . Robots Hacked . | . . . . . Non-combat . | . . . . . Combat . | . . . . . Robot Hacks Applied . | . . . . . Relay Couplers Released . | . . . . . Fabnet Peak Effective % . | . . . . . Robots Rewired . | . . . . . Allies Hacked . | . . . . . Hacks Repelled . | . . . . . Allies | -11 -10 -10 -9 -9 -------- Run | Yrd Mat Min Mat Min Total Allies 3 | . . 3 . . Largest Group 3 | . . 3 2 . Highest-Rated Group 40 | . . 40 24 . Highest-Rated Ally 16 | . . 16 16 . Total Orders . | . . . . . Ally Attacks 27 | . . 20 7 . Total Damage 342 | . . 259 83 . Kills 4 | . . 3 1 . Allies Corrupted . | . . . . . Allies Melted . | . . . . . Intel | -11 -10 -10 -9 -9 ------- Run | Yrd Mat Min Mat Min Robot Analysis Total . | . . . . . Derelict Logs Recovered 1 | . . 1 . . Drone Launches . | . . . . . Drone Recoveries . | . . . . . Exploration | -11 -10 -10 -9 -9 ------------- Run | Yrd Mat Min Mat Min Turns Passed 2238 | 81 254 934 890 79 Spaces Moved 935 | 43 113 515 236 28 Core 17 | 1 . . . 16 Treads 918 | 42 113 515 236 12 Legs . | . . . . . Wheels . | . . . . . Hover . | . . . . . Flight . | . . . . . Fastest Speed 50 | 50 160 160 160 50 Average Speed 199 | 157 160 160 315 168 Slowest Speed 480 | 160 160 160 480 400 Overloaded Moves . | . . . . . Propulsion Burnouts . | . . . . . Robots Hopped . | . . . . . Cave-ins Triggered . | . . . . . Exploration Rate (%) 31 | 4 18 98 25 11 Regions Visited 4 Branch Regions 2 Pre-discovered Areas . | . . . . . Known Exits Taken . | . . . . . Unknown Exits Taken 4 | 1 1 1 1 . Scrap Searched 1 | . . 1 . . Spaces Dug . | . . . . . Terrain Destroyed 26 | . . . . 26 Melee . | . . . . . Projectile . | . . . . . AOE 26 | . . . . 26 Terrain Rammed . | . . . . . Walls Destroyed . | . . . . . Machines Disabled . | . . . . . Actions | -11 -10 -10 -9 -9 --------- Run | Yrd Mat Min Mat Min Total 1165 | 53 164 597 310 41 Wait 93 | . 20 49 23 1 Move 931 | 42 112 514 235 28 Hop . | . . . . . Pick Up 22 | 4 6 4 7 1 Fast Attach 16 | 6 3 1 6 . Attach 1 | . . . . 1 Detach 3 | . 2 . 1 . Swap 6 | . 2 2 1 1 Drop 14 | . 6 7 1 . Fire 72 | . 13 14 36 9 Melee . | . . . . . Ram . | . . . . . Kick . | . . . . . Crush 7 | 1 . 6 . . Escape Stasis . | . . . . . Rewire . | . . . . . Trap . | . . . . . Miscellaneous . | . . . . . Route ------- -11/Scrapyard -10/Materials -10/Mines (discovered 2 exits: *Mat x2) -9/Materials -9/Mines History --------- Turn | Location | Event 26 | -11/Scrapyard | Discovered new exit (range 16) 82 | -11/Scrapyard | Entered Materials 223 | -10/Materials | Discovered new exit (range 16) 320 | -10/Materials | Build established: Mutant 336 | -10/Materials | Entered Mines 338 | -10/Mines | Discovered new exit (range 6) 420 | -10/Mines | Learned Materials emergency access door positions 523 | -10/Mines | Discovered new exit (range 8) 727 | -10/Mines | Received a Rocket Launcher from a helpful Derelict 819 | -10/Mines | Assisted by bots powering up and referring to "LRC-V3" 1023 | -10/Mines | Found a damaged Exp. Sensor Array with a note attached 1028 | -10/Mines | Found Prototype Device 1270 | -10/Mines | Entered Materials 1270 | -9/Materials | Accompanied by 2 allies 1270 | -9/Materials | Evolved 2 slots: Utility x2 2086 | -9/Materials | Discovered new exit (range 5) 2160 | -9/Materials | Entered Mines 2190 | -9/Mines | Assembled infested the area 2224 | -9/Mines | Core integrity fell below 50% 2231 | -9/Mines | Released all parts (3) 2232 | -9/Mines | Core integrity fell below 20% 2235 | -9/Mines | Found a hidden stash of uninstalled traps 2239 | -9/Mines | Destroyed by D-53 Grenadier with Mini Grenade Launcher Last Messages --------------- Lgt. Treads destroyed. as-42019 destroyed. The unstable cave ceiling collapses. Rocket Launcher destroyed. The unstable cave ceiling collapses. Imp. Treads destroyed. as-20726 destroyed. Released Lgt. Ion Engine. Released Heat Sink. Released Huge Storage Unit. The unstable cave ceiling collapses. Huge Storage Unit crushed. The unstable cave ceiling collapses. Spread Laser crushed. The unstable cave ceiling collapses. Lgt. Treads crushed. The unstable cave ceiling collapses. A stash of uninstalled traps is collected here! as-12627 destroyed. as-55823 destroyed. Map ----- +----------------------------------------------------+ | ??????????????????????????????????????????? | | ??????????????????????????????????????????? | | ??????????????????????????????????????????? | | ??????????????????????????????????????????? | | ??????????????????????????????????????????? | | ??????????????????????????????????????????? | | ??????????????????????????????????????????? | | ??????????????????????????????????????????? | | ??????????????????????????????????????????? | | ??????????????????????????????????????????? | | ??????????????????????????????????????????? | | ??????????????????????????????????????????? | | ??????????????????????????????????????????? | | ??????????????????????????????????????????? | | ??????????????????????????????????????????? | | ??????????????????????????????????????????? | | ??????????????????????????????????????????? | | ??????????????????????????????????????????? | | ??????????????????????????????????????????? | | ??????????????????????????????????????????? | | ?????????????#####????????????????????????? | | ????????????## & ##????????? ?????????????? | | ????????????# &&##??????? #?????????????? | | ????????????# #????? #?????????????? | | ????????????## # # #?????????????? | | ????????????### @ a ##????????????? | | ???########## #????????????? | | ???# ###????????????? | | ???# "" = ##??????????????? | | ???# "" # [ #???????????????? | | ???# """ =!*=[ #???????????????? | | ???# *#]! #???????????????? | | ???# =% = [ !# d ######???????????????? | | ???# d # ##????????????????????? | | ???######## # ##?????????????????????? | | ??????????##### #??????????????????????? | | ?????????????? ??????????????????????? | | ?????????????? #?????????????????????? | | ?????????????? #?????????????????????? | | ????????????? ?????????????????????? | | ?????????????# ?????????????????????? | | ?????????????# ##????????????????????? | | ?????????????### ###?????????????????????? | | ????????????????% #???????????????????????? | | ????????????????" #???????????????????????? | | ???????????????? ????????????????????????? | | ??????????????????????????????????????????? | | ??????????????????????????????????????????? | | ??????????????????????????????????????????? | | ??????????????????????????????????????????? | +----------------------------------------------------+ Best States ------------- Heat Dissipation 52 Energy Generation 14 Energy Capacity 265 Matter Stores 300 Matter Capacity 300 Sight Range 16 Terrain Scan Density 10 Armor Coverage 225 Evasion (%) 40 Recoil Reduction 2 Item Schematics ----------------- None Robot Schematics ------------------ None Fabricated ------------ Nothing Alien Tech Used ----------------- None Achievements -------------- None Challenges ------------ None Game ------ Seed ArcSwordRefractor Manual? 0 Play Time 00:17:08 Cumulative 24.4 hours Start 2025.03.29 @ 13:07:01 End 2025.03.29 @ 13:22:47 Sessions 1 Manual Loads 0 Difficulty Rogue Special Mode None Game No. 38 Rogue 38 Adventurer 0 Explorer 0 Win Type - Total 0 Types 0/0/0/0/0/0/0/0/0 Lore% 6 Gallery% 24 Achievement% 21 Wizard Run 0 Options --------- Layout 1 ASCII 0 Keyboard 0 Movement Numpad Keybinds 0 Fullscreen 1 Font 48/Smallcaps Map View 50x35 Zoom Use 0% Tactical HUD 0 Map Filters NONE Filters NONE Steam 1 RUN: f6edccd1-8ec1-4300-b5ec-f01c49d39654